[Event "Titled Tuesday Blitz March 22 Early 2022"]
[White "Khripachenko, Alexander"]
[Black "Shuvalov, Evgenij"]
[WhiteFideId "54184975"]
[BlackFideId "4187237"]
[WhiteElo "2597"]
[BlackElo "2510"]
[Result "0-1"]
[Round "09"]
[TimeControl "180+1"]
[Date "2022.03.22"]
[WhiteClock "0:00:01"]
[BlackClock "0:00:56"]

1. e4 {[%clk 0:03:00]}  e6 {[%clk 0:02:59]} 2. d4 {[%clk 0:03:00]}  d5 {[%clk 0:02:59]} 3. Nd2 {[%clk 0:03:00]}  c5 {[%clk 0:02:57]} 4. exd5 {[%clk 0:03:00]}  exd5 {[%clk 0:02:58]} 5. Bb5+ {[%clk 0:03:00]}  Nc6 {[%clk 0:02:57]} 6. Ngf3 {[%clk 0:03:00]}  Qe7+ {[%clk 0:02:57]} 7. Be2 {[%clk 0:03:00]}  Qc7 {[%clk 0:02:56]} 8. O-O {[%clk 0:03:01]}  Nf6 {[%clk 0:02:56]} 9. Re1 {[%clk 0:03:00]}  Be6 {[%clk 0:02:56]} 10. dxc5 {[%clk 0:02:56]}  Bxc5 {[%clk 0:02:54]} 11. Nb3 {[%clk 0:02:56]}  Be7 {[%clk 0:02:54]} 12. Nbd4 {[%clk 0:02:42]}  Bg4 {[%clk 0:02:49]} 13. h3 {[%clk 0:02:39]}  Bxf3 {[%clk 0:02:46]} 14. Nxf3 {[%clk 0:02:37]}  O-O {[%clk 0:02:45]} 15. Bd3 {[%clk 0:02:37]}  h6 {[%clk 0:02:41]} 16. c3 {[%clk 0:02:37]}  Bc5 {[%clk 0:02:38]} 17. Be3 {[%clk 0:02:37]}  Bxe3 {[%clk 0:02:37]} 18. Rxe3 {[%clk 0:02:37]}  Rfe8 {[%clk 0:02:33]} 19. Qd2 {[%clk 0:02:31]}  Rxe3 {[%clk 0:02:31]} 20. Qxe3 {[%clk 0:02:32]}  Re8 {[%clk 0:02:31]} 21. Qc5 {[%clk 0:02:32]}  Qa5 {[%clk 0:02:00]} 22. Qxa5 {[%clk 0:02:30]}  Nxa5 {[%clk 0:02:01]} 23. Rd1 {[%clk 0:02:26]}  Kf8 {[%clk 0:01:56]} 24. Bb5 {[%clk 0:02:21]}  Re7 {[%clk 0:01:42]} 25. Nd4 {[%clk 0:02:21]}  Nc4 {[%clk 0:01:33]} 26. Bxc4 {[%clk 0:02:07]}  dxc4 {[%clk 0:01:34]} 27. Nf5 {[%clk 0:02:08]}  Rd7 {[%clk 0:01:31]} 28. Rxd7 {[%clk 0:02:08]}  Nxd7 {[%clk 0:01:32]} 29. Nd6 {[%clk 0:02:08]}  Nc5 {[%clk 0:01:22]} 30. Nxc4 {[%clk 0:02:01]}  Na4 {[%clk 0:01:22]} 31. Nd6 {[%clk 0:00:22]}  b6 {[%clk 0:01:21]} 32. Nc8 {[%clk 0:00:19]}  a6 {[%clk 0:01:20]} 33. Kf1 {[%clk 0:00:11]}  b5 {[%clk 0:01:19]} 34. Ke2 {[%clk 0:00:05]}  Nxb2 {[%clk 0:01:19]} 35. Kd2 {[%clk 0:00:05]}  Na4 {[%clk 0:01:13]} 36. Kd3 {[%clk 0:00:03]}  Ke8 {[%clk 0:01:08]} 37. Nd6+ {[%clk 0:00:03]}  Ke7 {[%clk 0:01:08]} 38. Nf5+ {[%clk 0:00:03]}  Kf6 {[%clk 0:01:08]} 39. Nd6 {[%clk 0:00:03]}  Ke6 {[%clk 0:01:06]} 40. Ne4 {[%clk 0:00:04]}  f5 {[%clk 0:01:02]} 41. Nd2 {[%clk 0:00:03]}  Kd5 {[%clk 0:00:59]} 42. f3 {[%clk 0:00:01]}  g5 {[%clk 0:00:56]} 0-1


[Site "https://www.chess.com"]

[Event "Titled Tuesday Blitz March 22 Early 2022"]
[White "Kollars, Dmitrij"]
[Black "Sarana, Alexey"]
[WhiteFideId "12909572"]
[BlackFideId "24133795"]
[WhiteElo "2584"]
[BlackElo "2666"]
[Result "0-1"]
[Round "09"]
[TimeControl "180+1"]
[Date "2022.03.22"]
[WhiteClock "0:00:04"]
[BlackClock "0:00:14"]

1. c4 {[%clk 0:03:00]}  e6 {[%clk 0:02:58]} 2. Nf3 {[%clk 0:02:58]}  d5 {[%clk 0:02:58]} 3. d4 {[%clk 0:02:58]}  Nf6 {[%clk 0:02:57]} 4. g3 {[%clk 0:02:56]}  Bb4+ {[%clk 0:02:57]} 5. Bd2 {[%clk 0:02:55]}  Be7 {[%clk 0:02:57]} 6. Bg2 {[%clk 0:02:52]}  c6 {[%clk 0:02:58]} 7. O-O {[%clk 0:02:52]}  Nbd7 {[%clk 0:02:58]} 8. Qc2 {[%clk 0:02:52]}  b6 {[%clk 0:02:58]} 9. Bc3 {[%clk 0:02:46]}  dxc4 {[%clk 0:02:52]} 10. Rd1 {[%clk 0:02:38]}  Bb7 {[%clk 0:02:32]} 11. Ne5 {[%clk 0:02:32]}  Nxe5 {[%clk 0:01:56]} 12. dxe5 {[%clk 0:02:33]}  Nd7 {[%clk 0:01:57]} 13. Nd2 {[%clk 0:02:23]}  b5 {[%clk 0:01:55]} 14. Ne4 {[%clk 0:02:23]}  O-O {[%clk 0:01:53]} 15. Nd6 {[%clk 0:02:18]}  Qc7 {[%clk 0:01:50]} 16. a4 {[%clk 0:02:15]}  a6 {[%clk 0:01:42]} 17. Rd2 {[%clk 0:01:30]}  Nc5 {[%clk 0:01:34]} 18. axb5 {[%clk 0:01:22]}  axb5 {[%clk 0:01:34]} 19. Rad1 {[%clk 0:01:20]}  Rfd8 {[%clk 0:00:51]} 20. Nxf7 {[%clk 0:01:10]}  Kxf7 {[%clk 0:00:45]} 21. Qxh7 {[%clk 0:00:56]}  Rh8 {[%clk 0:00:44]} 22. Qc2 {[%clk 0:00:56]}  Rad8 {[%clk 0:00:43]} 23. Bf3 {[%clk 0:00:54]}  g6 {[%clk 0:00:29]} 24. Rd4 {[%clk 0:00:52]}  Nb3 {[%clk 0:00:25]} 25. Rf4+ {[%clk 0:00:43]}  Kg7 {[%clk 0:00:26]} 26. Rxd8 {[%clk 0:00:37]}  Bxd8 {[%clk 0:00:23]} 27. h4 {[%clk 0:00:20]}  c5 {[%clk 0:00:21]} 28. Rg4 {[%clk 0:00:20]}  Rh6 {[%clk 0:00:21]} 29. Be4 {[%clk 0:00:15]}  Bxe4 {[%clk 0:00:21]} 30. Qxe4 {[%clk 0:00:16]}  b4 {[%clk 0:00:19]} 31. Be1 {[%clk 0:00:15]}  Na5 {[%clk 0:00:17]} 32. Qa8 {[%clk 0:00:11]}  Qd7 {[%clk 0:00:15]} 33. Kh2 {[%clk 0:00:07]}  Rh5 {[%clk 0:00:13]} 34. Re4 {[%clk 0:00:05]}  Rf5 {[%clk 0:00:13]} 35. f4 {[%clk 0:00:05]}  Qd5 {[%clk 0:00:13]} 36. Qa7+ {[%clk 0:00:04]}  Rf7 {[%clk 0:00:14]} 0-1


[Site "https://www.chess.com"]

[Event "Titled Tuesday Blitz March 22 Early 2022"]
[White "Kouskoutis, Georgios-Alexandros"]
[Black "Mikhailovsky, Vladimir"]
[WhiteFideId "4234049"]
[BlackFideId "34105414"]
[WhiteElo "2130"]
[BlackElo "2371"]
[Result "0-1"]
[Round "09"]
[TimeControl "180+1"]
[Date "2022.03.22"]
[WhiteClock "0:00:01"]
[BlackClock "0:00:03"]

1. c4 {[%clk 0:03:00]}  e6 {[%clk 0:02:52]} 2. g3 {[%clk 0:03:00]}  d5 {[%clk 0:02:52]} 3. Bg2 {[%clk 0:03:01]}  c5 {[%clk 0:02:52]} 4. Nf3 {[%clk 0:03:01]}  Nf6 {[%clk 0:02:53]} 5. O-O {[%clk 0:03:01]}  Nc6 {[%clk 0:02:53]} 6. cxd5 {[%clk 0:03:01]}  exd5 {[%clk 0:02:48]} 7. d4 {[%clk 0:03:02]}  c4 {[%clk 0:02:47]} 8. Nc3 {[%clk 0:03:01]}  Bb4 {[%clk 0:02:47]} 9. Bg5 {[%clk 0:02:58]}  Bxc3 {[%clk 0:02:46]} 10. bxc3 {[%clk 0:02:59]}  h6 {[%clk 0:02:45]} 11. Bxf6 {[%clk 0:02:59]}  Qxf6 {[%clk 0:02:46]} 12. Ne5 {[%clk 0:02:44]}  Nxe5 {[%clk 0:02:33]} 13. dxe5 {[%clk 0:02:45]}  Qxe5 {[%clk 0:02:34]} 14. Qxd5 {[%clk 0:02:43]}  Qc7 {[%clk 0:01:51]} 15. Qe4+ {[%clk 0:02:12]}  Be6 {[%clk 0:01:49]} 16. Bh3 {[%clk 0:01:42]}  O-O {[%clk 0:01:31]} 17. Bxe6 {[%clk 0:01:41]}  fxe6 {[%clk 0:01:28]} 18. Qxe6+ {[%clk 0:01:33]}  Kh8 {[%clk 0:01:28]} 19. e3 {[%clk 0:01:24]}  Rf6 {[%clk 0:01:08]} 20. Qe4 {[%clk 0:01:20]}  Raf8 {[%clk 0:00:53]} 21. Rab1 {[%clk 0:01:18]}  b6 {[%clk 0:00:50]} 22. Rb4 {[%clk 0:01:17]}  Qf7 {[%clk 0:00:23]} 23. Qxc4 {[%clk 0:00:49]}  Rxf2 {[%clk 0:00:19]} 24. Qxf7 {[%clk 0:00:49]}  R2xf7 {[%clk 0:00:20]} 25. Rxf7 {[%clk 0:00:23]}  Rxf7 {[%clk 0:00:20]} 26. Kg2 {[%clk 0:00:24]}  Kg8 {[%clk 0:00:14]} 27. Rd4 {[%clk 0:00:23]}  Rc7 {[%clk 0:00:14]} 28. c4 {[%clk 0:00:18]}  Kf7 {[%clk 0:00:14]} 29. Kf3 {[%clk 0:00:18]}  Ke6 {[%clk 0:00:14]} 30. Ke4 {[%clk 0:00:19]}  Rf7 {[%clk 0:00:14]} 31. Rd2 {[%clk 0:00:16]}  Rf1 {[%clk 0:00:13]} 32. Rc2 {[%clk 0:00:14]}  Kd6 {[%clk 0:00:13]} 33. h4 {[%clk 0:00:13]}  Kc5 {[%clk 0:00:11]} 34. Ke5 {[%clk 0:00:13]}  Rf3 {[%clk 0:00:11]} 35. e4 {[%clk 0:00:13]}  Rxg3 {[%clk 0:00:11]} 36. Kf5 {[%clk 0:00:10]}  g6+ {[%clk 0:00:09]} 37. Kf6 {[%clk 0:00:07]}  Kd4 {[%clk 0:00:08]} 38. e5 {[%clk 0:00:05]}  g5 {[%clk 0:00:06]} 39. hxg5 {[%clk 0:00:05]}  Rf3+ {[%clk 0:00:06]} 40. Ke7 {[%clk 0:00:04]}  hxg5 {[%clk 0:00:06]} 41. e6 {[%clk 0:00:04]}  Kc5 {[%clk 0:00:04]} 42. Kd7 {[%clk 0:00:03]}  Rd3+ {[%clk 0:00:04]} 43. Ke8 {[%clk 0:00:04]}  g4 {[%clk 0:00:03]} 44. Rg2 {[%clk 0:00:04]}  g3 {[%clk 0:00:03]} 45. e7 {[%clk 0:00:04]}  Re3 {[%clk 0:00:04]} 46. Kf7 {[%clk 0:00:04]}  Rf3+ {[%clk 0:00:02]} 47. Ke6 {[%clk 0:00:04]}  Re3+ {[%clk 0:00:03]} 48. Kd7 {[%clk 0:00:04]}  Rd3+ {[%clk 0:00:03]} 49. Kc8 {[%clk 0:00:04]}  Re3 {[%clk 0:00:03]} 50. Kd8 {[%clk 0:00:04]}  Rd3+ {[%clk 0:00:02]} 51. Kc7 {[%clk 0:00:04]}  Re3 {[%clk 0:00:03]} 52. Kd7 {[%clk 0:00:04]}  Rd3+ {[%clk 0:00:03]} 53. Ke6 {[%clk 0:00:04]}  Re3+ {[%clk 0:00:03]} 54. Kf6 {[%clk 0:00:05]}  Kd6 {[%clk 0:00:03]} 55. Rxg3 {[%clk 0:00:03]}  Re6+ {[%clk 0:00:03]} 56. Kf5 {[%clk 0:00:03]}  Rxe7 {[%clk 0:00:04]} 57. Rd3+ {[%clk 0:00:02]}  Kc5 {[%clk 0:00:04]} 58. Rc3 {[%clk 0:00:03]}  Re1 {[%clk 0:00:04]} 59. Kf4 {[%clk 0:00:03]}  a5 {[%clk 0:00:04]} 60. Rc2 {[%clk 0:00:03]}  a4 {[%clk 0:00:04]} 61. Kf3 {[%clk 0:00:04]}  Re7 {[%clk 0:00:03]} 62. Kf2 {[%clk 0:00:04]}  Re8 {[%clk 0:00:04]} 63. Kf3 {[%clk 0:00:04]}  Re7 {[%clk 0:00:05]} 64. Kf2 {[%clk 0:00:04]}  Re4 {[%clk 0:00:05]} 65. Kf3 {[%clk 0:00:03]}  Rxc4 {[%clk 0:00:06]} 66. Rb2 {[%clk 0:00:03]}  Rd4 {[%clk 0:00:04]} 67. Ke3 {[%clk 0:00:03]}  Rd8 {[%clk 0:00:05]} 68. Ke2 {[%clk 0:00:03]}  b5 {[%clk 0:00:05]} 69. Rc2+ {[%clk 0:00:03]}  Kb4 {[%clk 0:00:05]} 70. Rb2+ {[%clk 0:00:03]}  Kc4 {[%clk 0:00:06]} 71. Rc2+ {[%clk 0:00:03]}  Kb4 {[%clk 0:00:07]} 72. Rb2+ {[%clk 0:00:04]}  Ka5 {[%clk 0:00:07]} 73. Ke3 {[%clk 0:00:03]}  b4 {[%clk 0:00:08]} 74. Ke2 {[%clk 0:00:03]}  Kb5 {[%clk 0:00:08]} 75. Rb1 {[%clk 0:00:03]}  Kc4 {[%clk 0:00:08]} 76. Rc1+ {[%clk 0:00:04]}  Kb5 {[%clk 0:00:09]} 77. Rd1 {[%clk 0:00:02]}  Rc8 {[%clk 0:00:03]} 78. Kd2 {[%clk 0:00:02]}  b3 {[%clk 0:00:03]} 79. axb3 {[%clk 0:00:02]}  axb3 {[%clk 0:00:02]} 80. Rh1 {[%clk 0:00:03]}  Kb4 {[%clk 0:00:02]} 81. Ra1 {[%clk 0:00:01]}  Rc7 {[%clk 0:00:02]} 82. Ra8 {[%clk 0:00:01]}  Rc2+ {[%clk 0:00:02]} 83. Kd3 {[%clk 0:00:01]}  Rc7 {[%clk 0:00:03]} 0-1


[Site "https://www.chess.com"]

[Event "Titled Tuesday Blitz March 22 Early 2022"]
[White "Krysa, Leandro"]
[Black "Demchenko, Anton"]
[WhiteFideId "116807"]
[BlackFideId "4160258"]
[WhiteElo "2490"]
[BlackElo "2539"]
[Result "0-1"]
[Round "09"]
[TimeControl "180+1"]
[Date "2022.03.22"]
[WhiteClock "0:00:11"]
[BlackClock "0:00:41"]

1. e4 {[%clk 0:03:00]}  e5 {[%clk 0:02:58]} 2. Nf3 {[%clk 0:03:01]}  Nc6 {[%clk 0:02:58]} 3. Nc3 {[%clk 0:03:01]}  Nf6 {[%clk 0:02:58]} 4. a4 {[%clk 0:03:02]}  d6 {[%clk 0:02:56]} 5. Bb5 {[%clk 0:02:59]}  Bg4 {[%clk 0:02:49]} 6. h3 {[%clk 0:02:57]}  Bxf3 {[%clk 0:02:48]} 7. Qxf3 {[%clk 0:02:57]}  Nd7 {[%clk 0:02:49]} 8. Qd1 {[%clk 0:02:53]}  g6 {[%clk 0:02:49]} 9. O-O {[%clk 0:02:51]}  Bg7 {[%clk 0:02:49]} 10. d3 {[%clk 0:02:50]}  O-O {[%clk 0:02:46]} 11. Bc4 {[%clk 0:02:49]}  Kh8 {[%clk 0:02:43]} 12. Nd5 {[%clk 0:02:41]}  f5 {[%clk 0:02:25]} 13. c3 {[%clk 0:02:41]}  f4 {[%clk 0:02:21]} 14. a5 {[%clk 0:02:31]}  Ne7 {[%clk 0:02:08]} 15. a6 {[%clk 0:02:24]}  b6 {[%clk 0:02:08]} 16. d4 {[%clk 0:02:11]}  Nxd5 {[%clk 0:01:58]} 17. Bxd5 {[%clk 0:02:09]}  Rb8 {[%clk 0:01:59]} 18. Bc6 {[%clk 0:01:56]}  Qe7 {[%clk 0:01:59]} 19. d5 {[%clk 0:01:46]}  f3 {[%clk 0:01:43]} 20. g3 {[%clk 0:01:42]}  h5 {[%clk 0:01:35]} 21. Kh2 {[%clk 0:01:34]}  Kh7 {[%clk 0:01:35]} 22. b4 {[%clk 0:01:28]}  Bh6 {[%clk 0:01:34]} 23. Bxh6 {[%clk 0:01:21]}  Kxh6 {[%clk 0:01:35]} 24. Qd2+ {[%clk 0:01:21]}  Kg7 {[%clk 0:01:36]} 25. Rg1 {[%clk 0:01:16]}  Nf6 {[%clk 0:01:33]} 26. Qe3 {[%clk 0:01:02]}  Nh7 {[%clk 0:01:28]} 27. c4 {[%clk 0:00:48]}  h4 {[%clk 0:01:19]} 28. Raf1 {[%clk 0:00:36]}  Rf7 {[%clk 0:01:16]} 29. c5 {[%clk 0:00:23]}  Rh8 {[%clk 0:01:17]} 30. cxb6 {[%clk 0:00:22]}  cxb6 {[%clk 0:01:17]} 31. gxh4 {[%clk 0:00:18]}  Qxh4 {[%clk 0:01:14]} 32. Rg3 {[%clk 0:00:18]}  Rf4 {[%clk 0:00:52]} 33. Rfg1 {[%clk 0:00:17]}  Ng5 {[%clk 0:00:53]} 34. Bd7 {[%clk 0:00:13]}  Rh5 {[%clk 0:00:45]} 35. Bg4 {[%clk 0:00:11]}  Rxg4 {[%clk 0:00:41]} 0-1


[Site "https://www.chess.com"]

[Event "Titled Tuesday Blitz March 22 Early 2022"]
[White "Krzywda, Andrzej"]
[Black "Coto Mederos, Michel"]
[WhiteFideId "1114565"]
[BlackFideId "3508528"]
[WhiteElo "2098"]
[BlackElo "2427"]
[Result "0-1"]
[Round "09"]
[TimeControl "180+1"]
[Date "2022.03.22"]
[WhiteClock "0:00:01"]
[BlackClock "0:00:02"]

1. Nf3 {[%clk 0:02:59]}  d5 {[%clk 0:02:58]} 2. d4 {[%clk 0:02:58]}  Nf6 {[%clk 0:02:58]} 3. g3 {[%clk 0:02:58]}  e6 {[%clk 0:02:46]} 4. Bg2 {[%clk 0:02:59]}  c5 {[%clk 0:02:46]} 5. O-O {[%clk 0:02:58]}  Nc6 {[%clk 0:02:44]} 6. b3 {[%clk 0:02:58]}  cxd4 {[%clk 0:02:37]} 7. Nxd4 {[%clk 0:02:55]}  Bc5 {[%clk 0:02:36]} 8. Nxc6 {[%clk 0:02:51]}  bxc6 {[%clk 0:02:35]} 9. Bb2 {[%clk 0:02:48]}  O-O {[%clk 0:02:34]} 10. c4 {[%clk 0:02:46]}  Rb8 {[%clk 0:02:20]} 11. cxd5 {[%clk 0:02:39]}  cxd5 {[%clk 0:02:18]} 12. Nc3 {[%clk 0:02:40]}  Qe7 {[%clk 0:02:11]} 13. Na4 {[%clk 0:02:34]}  Ba3 {[%clk 0:02:09]} 14. Be5 {[%clk 0:02:22]}  Bd6 {[%clk 0:02:07]} 15. Qd4 {[%clk 0:02:13]}  Bd7 {[%clk 0:01:55]} 16. Bxd6 {[%clk 0:02:08]}  Qxd6 {[%clk 0:01:55]} 17. Qxa7 {[%clk 0:01:55]}  Bb5 {[%clk 0:01:49]} 18. Bf3 {[%clk 0:01:44]}  e5 {[%clk 0:01:37]} 19. Rfe1 {[%clk 0:01:35]}  e4 {[%clk 0:01:37]} 20. Bg2 {[%clk 0:01:35]}  Rfc8 {[%clk 0:01:11]} 21. Qd4 {[%clk 0:01:24]}  Rc2 {[%clk 0:01:09]} 22. Nc3 {[%clk 0:01:20]}  Qa3 {[%clk 0:00:57]} 23. Qe5 {[%clk 0:00:52]}  Qa8 {[%clk 0:00:20]} 24. Rac1 {[%clk 0:00:46]}  Re8 {[%clk 0:00:18]} 25. Qd4 {[%clk 0:00:46]}  Rxc1 {[%clk 0:00:15]} 26. Rxc1 {[%clk 0:00:47]}  Bd7 {[%clk 0:00:15]} 27. Rd1 {[%clk 0:00:31]}  Be6 {[%clk 0:00:15]} 28. Na4 {[%clk 0:00:29]}  h6 {[%clk 0:00:13]} 29. Rc1 {[%clk 0:00:24]}  Qa6 {[%clk 0:00:12]} 30. Bf1 {[%clk 0:00:23]}  Qd6 {[%clk 0:00:10]} 31. Nc5 {[%clk 0:00:22]}  Bg4 {[%clk 0:00:10]} 32. b4 {[%clk 0:00:16]}  e3 {[%clk 0:00:09]} 33. f3 {[%clk 0:00:15]}  Bc8 {[%clk 0:00:08]} 34. a4 {[%clk 0:00:15]}  Nd7 {[%clk 0:00:05]} 35. b5 {[%clk 0:00:11]}  Nb6 {[%clk 0:00:05]} 36. a5 {[%clk 0:00:07]}  Nd7 {[%clk 0:00:05]} 37. Nxd7 {[%clk 0:00:07]}  Bxd7 {[%clk 0:00:05]} 38. b6 {[%clk 0:00:06]}  Ra8 {[%clk 0:00:05]} 39. Qc3 {[%clk 0:00:05]}  Kh7 {[%clk 0:00:04]} 40. Qd3+ {[%clk 0:00:04]}  g6 {[%clk 0:00:04]} 41. Qxe3 {[%clk 0:00:04]}  Rxa5 {[%clk 0:00:04]} 42. f4 {[%clk 0:00:04]}  d4 {[%clk 0:00:04]} 43. Qb3 {[%clk 0:00:03]}  Be6 {[%clk 0:00:03]} 44. Qb2 {[%clk 0:00:01]}  Ra8 {[%clk 0:00:03]} 45. Rd1 {[%clk 0:00:01]}  Rb8 {[%clk 0:00:04]} 46. Qxd4 {[%clk 0:00:01]}  Qxb6 {[%clk 0:00:04]} 47. Qxb6 {[%clk 0:00:01]}  Rxb6 {[%clk 0:00:05]} 48. Bg2 {[%clk 0:00:02]}  Rb2 {[%clk 0:00:06]} 49. Bf3 {[%clk 0:00:02]}  Bc4 {[%clk 0:00:07]} 50. Kf2 {[%clk 0:00:01]}  Kg7 {[%clk 0:00:07]} 51. Rc1 {[%clk 0:00:02]}  Bb5 {[%clk 0:00:08]} 52. Rc3 {[%clk 0:00:03]}  Kf6 {[%clk 0:00:07]} 53. Re3 {[%clk 0:00:04]}  Kg7 {[%clk 0:00:08]} 54. Re5 {[%clk 0:00:05]}  Kf6 {[%clk 0:00:07]} 55. Re3 {[%clk 0:00:06]}  g5 {[%clk 0:00:07]} 56. Re5 {[%clk 0:00:06]}  gxf4 {[%clk 0:00:07]} 57. gxf4 {[%clk 0:00:07]}  Rb4 {[%clk 0:00:07]} 58. Re3 {[%clk 0:00:07]}  Rxf4 {[%clk 0:00:07]} 59. Kg3 {[%clk 0:00:08]}  Rb4 {[%clk 0:00:08]} 60. Rc3 {[%clk 0:00:08]}  Rb2 {[%clk 0:00:08]} 61. Re3 {[%clk 0:00:08]}  Kg5 {[%clk 0:00:07]} 62. Kf2 {[%clk 0:00:09]}  f5 {[%clk 0:00:08]} 63. Re7 {[%clk 0:00:08]}  Kf4 {[%clk 0:00:08]} 64. Rb7 {[%clk 0:00:07]}  Rb3 {[%clk 0:00:06]} 65. Bc6 {[%clk 0:00:07]}  Bc4 {[%clk 0:00:05]} 66. Rc7 {[%clk 0:00:06]}  Rb2 {[%clk 0:00:04]} 67. Re7 {[%clk 0:00:05]}  Kg5 {[%clk 0:00:03]} 68. Bf3 {[%clk 0:00:06]}  Kf6 {[%clk 0:00:04]} 69. Rc7 {[%clk 0:00:06]}  Be6 {[%clk 0:00:04]} 70. Rc6 {[%clk 0:00:06]}  Ke5 {[%clk 0:00:05]} 71. Rc5+ {[%clk 0:00:05]}  Kf4 {[%clk 0:00:04]} 72. Ra5 {[%clk 0:00:05]}  Bf7 {[%clk 0:00:04]} 73. Ra4+ {[%clk 0:00:05]}  Kg5 {[%clk 0:00:04]} 74. h4+ {[%clk 0:00:05]}  Kf6 {[%clk 0:00:04]} 75. Ra6+ {[%clk 0:00:06]}  Kg7 {[%clk 0:00:04]} 76. Ra7 {[%clk 0:00:06]}  Kf6 {[%clk 0:00:05]} 77. Ra6+ {[%clk 0:00:06]}  Kg7 {[%clk 0:00:05]} 78. Kg3 {[%clk 0:00:06]}  Rb4 {[%clk 0:00:04]} 79. Rc6 {[%clk 0:00:05]}  Rd4 {[%clk 0:00:04]} 80. Rb6 {[%clk 0:00:05]}  Bg6 {[%clk 0:00:03]} 81. Ra6 {[%clk 0:00:04]}  Bf7 {[%clk 0:00:03]} 82. Ra7 {[%clk 0:00:04]}  Kf6 {[%clk 0:00:03]} 83. Ra6+ {[%clk 0:00:04]}  Kg7 {[%clk 0:00:03]} 84. Kf2 {[%clk 0:00:04]}  Bg6 {[%clk 0:00:02]} 85. Ke3 {[%clk 0:00:03]}  Rb4 {[%clk 0:00:03]} 86. Kf2 {[%clk 0:00:04]}  f4 {[%clk 0:00:03]} 87. Ra7+ {[%clk 0:00:04]}  Kf6 {[%clk 0:00:03]} 88. Ra6+ {[%clk 0:00:04]}  Kg7 {[%clk 0:00:03]} 89. Ra5 {[%clk 0:00:05]}  Bf7 {[%clk 0:00:03]} 90. h5 {[%clk 0:00:05]}  Kf6 {[%clk 0:00:01]} 91. Ra6+ {[%clk 0:00:05]}  Kg7 {[%clk 0:00:02]} 92. Ra7 {[%clk 0:00:05]}  Kf6 {[%clk 0:00:02]} 93. Rc7 {[%clk 0:00:05]}  Kg7 {[%clk 0:00:03]} 94. Kg2 {[%clk 0:00:05]}  Kf6 {[%clk 0:00:04]} 95. Rc6+ {[%clk 0:00:05]}  Kg5 {[%clk 0:00:03]} 96. Kh3 {[%clk 0:00:05]}  Rb5 {[%clk 0:00:01]} 97. Ra6 {[%clk 0:00:03]}  Rc5 {[%clk 0:00:01]} 98. Ra1 {[%clk 0:00:03]}  Kf6 {[%clk 0:00:02]} 99. Kh4 {[%clk 0:00:02]}  Be6 {[%clk 0:00:02]} 100. Rg1 {[%clk 0:00:02]}  Rg5 {[%clk 0:00:01]} 101. Rc1 {[%clk 0:00:01]}  Rg3 {[%clk 0:00:02]} 0-1


[Site "https://www.chess.com"]

[Event "Titled Tuesday Blitz March 22 Early 2022"]
[White "Manukian, Artak"]
[Black "Melikhov, Evgeny V."]
[WhiteFideId "13301373"]
[BlackFideId "4122046"]
[WhiteElo "2426"]
[BlackElo "1945"]
[Result "1-0"]
[Round "09"]
[TimeControl "180+1"]
[Date "2022.03.22"]
[WhiteClock "0:00:11"]
[BlackClock "0:00:43"]

1. e4 {[%clk 0:02:56]}  e5 {[%clk 0:02:57]} 2. Nf3 {[%clk 0:02:55]}  Nc6 {[%clk 0:02:55]} 3. d4 {[%clk 0:02:55]}  exd4 {[%clk 0:02:55]} 4. Nxd4 {[%clk 0:02:56]}  Bc5 {[%clk 0:02:54]} 5. Nxc6 {[%clk 0:02:56]}  Qf6 {[%clk 0:02:52]} 6. Qf3 {[%clk 0:02:55]}  Qxf3 {[%clk 0:02:49]} 7. gxf3 {[%clk 0:02:54]}  bxc6 {[%clk 0:02:49]} 8. Bc4 {[%clk 0:02:54]}  Ne7 {[%clk 0:02:47]} 9. Nc3 {[%clk 0:02:53]}  d6 {[%clk 0:02:41]} 10. h4 {[%clk 0:02:49]}  Be6 {[%clk 0:02:41]} 11. Bd3 {[%clk 0:02:38]}  d5 {[%clk 0:02:38]} 12. h5 {[%clk 0:02:33]}  Bb4 {[%clk 0:02:31]} 13. Bd2 {[%clk 0:02:32]}  d4 {[%clk 0:02:30]} 14. Ne2 {[%clk 0:02:28]}  Bxd2+ {[%clk 0:02:29]} 15. Kxd2 {[%clk 0:02:28]}  c5 {[%clk 0:02:29]} 16. b3 {[%clk 0:02:27]}  h6 {[%clk 0:02:21]} 17. f4 {[%clk 0:02:16]}  g5 {[%clk 0:02:01]} 18. fxg5 {[%clk 0:01:42]}  hxg5 {[%clk 0:02:00]} 19. Rag1 {[%clk 0:01:40]}  f6 {[%clk 0:02:00]} 20. f4 {[%clk 0:01:37]}  gxf4 {[%clk 0:01:49]} 21. Nxf4 {[%clk 0:01:38]}  Kd7 {[%clk 0:01:48]} 22. h6 {[%clk 0:01:33]}  Nc6 {[%clk 0:01:39]} 23. Bb5 {[%clk 0:01:22]}  Rae8 {[%clk 0:01:22]} 24. Rg7+ {[%clk 0:01:16]}  Kd6 {[%clk 0:01:22]} 25. h7 {[%clk 0:01:08]}  Re7 {[%clk 0:01:21]} 26. Nxe6 {[%clk 0:00:48]}  Kxe6 {[%clk 0:01:19]} 27. Rg8 {[%clk 0:00:22]}  Rhxh7 {[%clk 0:01:14]} 28. Rxh7 {[%clk 0:00:21]}  Rxh7 {[%clk 0:01:12]} 29. Bxc6 {[%clk 0:00:21]}  Rh2+ {[%clk 0:01:10]} 30. Kc1 {[%clk 0:00:21]}  d3 {[%clk 0:01:07]} 31. cxd3 {[%clk 0:00:20]}  Rxa2 {[%clk 0:01:07]} 32. Bd5+ {[%clk 0:00:17]}  Ke5 {[%clk 0:01:07]} 33. b4 {[%clk 0:00:16]}  Ra3 {[%clk 0:01:06]} 34. bxc5 {[%clk 0:00:15]}  Rxd3 {[%clk 0:01:05]} 35. Kc2 {[%clk 0:00:15]}  Kd4 {[%clk 0:01:04]} 36. c6 {[%clk 0:00:15]}  Rc3+ {[%clk 0:01:00]} 37. Kb2 {[%clk 0:00:14]}  Re3 {[%clk 0:00:59]} 38. Rf8 {[%clk 0:00:14]}  Rf3 {[%clk 0:00:53]} 39. Rf7 {[%clk 0:00:14]}  Kc5 {[%clk 0:00:50]} 40. Rxc7 {[%clk 0:00:13]}  f5 {[%clk 0:00:51]} 41. Rxa7 {[%clk 0:00:12]}  Rf2+ {[%clk 0:00:47]} 42. Kc3 {[%clk 0:00:11]}  Rf3+ {[%clk 0:00:46]} 43. Kd2 {[%clk 0:00:12]}  fxe4 {[%clk 0:00:44]} 44. c7 {[%clk 0:00:11]}  Rd3+ {[%clk 0:00:43]} 45. Ke2 {[%clk 0:00:11]} 1-0


[Site "https://www.chess.com"]

[Event "Titled Tuesday Blitz March 22 Early 2022"]
[White "Marcziter, Dmitrii"]
[Black "Fiol, Fabrice"]
[WhiteFideId "13900765"]
[BlackFideId "611670"]
[WhiteElo "2155"]
[BlackElo "2445"]
[Result "1-0"]
[Round "09"]
[TimeControl "180+1"]
[Date "2022.03.22"]
[WhiteClock "0:01:32"]
[BlackClock "0:00:10"]

1. d4 {[%clk 0:03:00]}  Nf6 {[%clk 0:02:59]} 2. c4 {[%clk 0:03:00]}  e6 {[%clk 0:02:59]} 3. Nf3 {[%clk 0:02:59]}  Bb4+ {[%clk 0:03:00]} 4. Nbd2 {[%clk 0:02:59]}  b6 {[%clk 0:02:59]} 5. a3 {[%clk 0:02:58]}  Bxd2+ {[%clk 0:02:59]} 6. Bxd2 {[%clk 0:02:58]}  Bb7 {[%clk 0:03:00]} 7. Bf4 {[%clk 0:02:57]}  d6 {[%clk 0:03:00]} 8. h3 {[%clk 0:02:57]}  Nbd7 {[%clk 0:02:59]} 9. e3 {[%clk 0:02:58]}  Qe7 {[%clk 0:03:00]} 10. Be2 {[%clk 0:02:58]}  e5 {[%clk 0:03:00]} 11. Bh2 {[%clk 0:02:55]}  Ne4 {[%clk 0:02:58]} 12. O-O {[%clk 0:02:51]}  O-O {[%clk 0:02:57]} 13. Qc2 {[%clk 0:02:50]}  f5 {[%clk 0:02:57]} 14. b4 {[%clk 0:02:48]}  a5 {[%clk 0:02:56]} 15. c5 {[%clk 0:02:43]}  bxc5 {[%clk 0:02:47]} 16. bxc5 {[%clk 0:02:42]}  Bd5 {[%clk 0:02:39]} 17. Bc4 {[%clk 0:02:37]}  Bxc4 {[%clk 0:02:34]} 18. Qxc4+ {[%clk 0:02:37]}  Kh8 {[%clk 0:02:34]} 19. cxd6 {[%clk 0:02:29]}  cxd6 {[%clk 0:02:34]} 20. Rac1 {[%clk 0:02:23]}  h6 {[%clk 0:02:32]} 21. Rfd1 {[%clk 0:02:19]}  Rfc8 {[%clk 0:02:19]} 22. Qd5 {[%clk 0:02:14]}  Nb6 {[%clk 0:01:36]} 23. Rxc8+ {[%clk 0:02:11]}  Rxc8 {[%clk 0:01:33]} 24. Qxa5 {[%clk 0:02:10]}  Nc3 {[%clk 0:01:21]} 25. Re1 {[%clk 0:02:03]}  e4 {[%clk 0:00:35]} 26. Nd2 {[%clk 0:01:56]}  Nbd5 {[%clk 0:00:24]} 27. Qa6 {[%clk 0:01:52]}  f4 {[%clk 0:00:15]} 28. Qxc8+ {[%clk 0:01:48]}  Kh7 {[%clk 0:00:15]} 29. Bxf4 {[%clk 0:01:43]}  Nxf4 {[%clk 0:00:14]} 30. exf4 {[%clk 0:01:42]}  e3 {[%clk 0:00:11]} 31. Qxc3 {[%clk 0:01:34]}  e2 {[%clk 0:00:10]} 32. Qd3+ {[%clk 0:01:32]} 1-0


[Site "https://www.chess.com"]